[Event "EYCC Girls-U16 2019"]
[Site "Bratislava"]
[Date "2019.08.03"]
[Round "2.17"]
[White "Esadze, Tamari"]
[Black "Levitan, Ronit"]
[Result "1-0"]
[ECO "C80"]
[WhiteElo "1997"]
[BlackElo "2022"]
[Annotator "NA"]
[PlyCount "83"]
[EventDate "2019.08.02"]
[EventType "swiss"]
[EventCountry "SVK"]
[SourceTitle "playchess.com"]
[Source "ChessBase"]
[SourceQuality "1"]
[TimeControl "40/5400+30:1800+30"]

1. e4 {[%emt 0:00:00]} e5 {[%emt 0:00:00]} 2. Nf3 {[%emt 0:00:00]} Nc6 {[%emt 0:00:01]} 3. Bb5 {[%emt 0:00:00]} a6 {[%emt 0:00:08]} 4. Ba4 {[%emt 0:00:00]} Nf6 {[%emt 0:00:05]} 5. O-O {[%emt 0:00:00]} Nxe4 {[%emt 0:00:21]} 6. Re1 {[%emt 0:01:21]} Nc5 {[%emt 0:00:28]} 7. Bxc6 {[%emt 0:00:21]} dxc6 {[%emt 0:00:15]} 8. d4 {[%emt 0:00:42]} Ne6 {[%emt 0:01:50]} 9. Rxe5 {[%emt 0:03:14]} Be7 {[%emt 0:04:46]} 10. Nc3 {[%emt 0:13:39]} O-O {[%emt 0:06:31]} 11. Re1 {[%emt 0:08:06]} Re8 {[%emt 0:15:23]} 12. Be3 {[%emt 0:06:06]} h6 {[%emt 0:04:01]} 13. Ne5 {[%emt 0:06:11]} Nf8 {[%emt 0:04:55]} 14. Qh5 {[%emt 0:08:08]} Be6 {[%emt 0:05:17]} 15. Rad1 {[%emt 0:06:29]} Nd7 {[%emt 0:08:19]} 16. Ne4 {[%emt 0:18:00]} Nxe5 {[%emt 0:11:29]} 17. dxe5 {[%emt 0:01:24]} Qc8 {[%emt 0:02:54]} 18. h3 {[%emt 0:00:43]} Bf5 {[%emt 0:01:31]} 19. Bd4 {[%emt 0:06:02]} b6 {[%emt 0:03:22]} 20. Bc3 {[%emt 0:08:04]} c5 {[%emt 0:00:41]} 21. Re3 {[%emt 0:02:18]} Bg6 {[%emt 0:00:26]} 22. Qe2 {[%emt 0:00:45]} Qe6 {[%emt 0:01:55]} 23. f4 {[%emt 0:01:41]} b5 {[%emt 0:04:02]} 24. a3 {[%emt 0:03:54]} b4 {[%emt 0:02:41]} 25. Bd2 {[%emt 0:00:18]} Qb6 {[%emt 0:04:32]} 26. Rf1 {[%emt 0:02:17]} Bxe4 {[%emt 0:07:32]} 27. Rxe4 {[%emt 0:00:02]} c4+ {[%emt 0:00:19]} 28. Kh1 {[%emt 0:00:40]} c3 {[%emt 0:01:49]} 29. Be3 {[%emt 0:02:17]} Qb7 {[%emt 0:00:28]} 30. Bc1 {[%emt 0:01:31]} cxb2 {[%emt 0:00:25]} 31. Bxb2 {[%emt 0:00:02]} bxa3 {[%emt 0:00:17]} 32. Ba1 {[%emt 0:00:01]} Rab8 {[%emt 0:01:13]} 33. f5 {[%emt 0:00:05]} a2 {[%emt 0:03:39]} 34. f6 {[%emt 0:00:14]} Bxf6 {[%emt 0:02:25]} 35. Qg4 {[%emt 0:01:57]} Be7 {[%emt 0:02:33]} 36. Qf5 {[%emt 0:00:32]} Rf8 {[%emt 0:00:11]} 37. Rg4 {[%emt 0:00:27]} Qb1 {[%emt 0:00:55]} 38. e6 {[%emt 0:00:51]} f6 {[%emt 0:00:28]} 39. Rg1 {[%emt 0:00:32]} g5 {[%emt 0:00:46]} 40. Qg6+ {[%emt 0:00:00]} Kh8 {[%emt 0:00:00]} 41. Qxh6+ {[%emt 0:00:20]} Kg8 {[%emt 0:00:12]} 42. Rxg5+ {[%emt 0:00:03]} 1-0

[Event "EYCC Girls-U16 2019"]
[Site "Bratislava"]
[Date "2019.08.03"]
[Round "2.18"]
[White "Czarnecka, Lidia"]
[Black "Bulatova, Kamaliya"]
[Result "1-0"]
[ECO "B23"]
[WhiteElo "1731"]
[BlackElo "2157"]
[Annotator "NA"]
[PlyCount "95"]
[EventDate "2019.08.02"]
[EventType "swiss"]
[EventCountry "SVK"]
[SourceTitle "playchess.com"]
[Source "ChessBase"]
[SourceQuality "1"]
[TimeControl "40/5400+30:1800+30"]

1. e4 {[%emt 0:00:00]} c5 {[%emt 0:00:00]} 2. Nc3 {[%emt 0:00:07]} d6 {[%emt 0:00:20]} 3. f4 {[%emt 0:00:13]} Nc6 {[%emt 0:00:45]} 4. Nf3 {[%emt 0:00:33]} g6 {[%emt 0:01:18]} 5. d4 {[%emt 0:04:19]} cxd4 {[%emt 0:01:58]} 6. Nxd4 {[%emt 0:00:12]} Bg7 {[%emt 0:01:19]} 7. Be3 {[%emt 0:01:15]} Bd7 {[%emt 0:07:11]} 8. Qd2 {[%emt 0:01:53]} Nf6 {[%emt 0:05:52]} 9. Be2 {[%emt 0:01:07]} a6 {[%emt 0:04:26]} 10. a4 {[%emt 0:02:53]} Qa5 {[%emt 0:08:42]} 11. Rd1 {[%emt 0:22:25]} Qb4 {[%emt 0:09:29]} 12. Bf3 {[%emt 0:15:59]} Ng4 {[%emt 0:13:57]} 13. Bg1 {[%emt 0:21:54]} Rc8 {[%emt 0:07:03]} 14. h3 {[%emt 0:01:45]} Nxd4 {[%emt 0:04:08]} 15. Bxd4 {[%emt 0:00:23]} Bxd4 {[%emt 0:00:19]} 16. Qxd4 {[%emt 0:00:13]} Qxd4 {[%emt 0:00:02]} 17. Rxd4 {[%emt 0:00:35]} Ne3 {[%emt 0:00:20]} 18. Kd2 {[%emt 0:02:01]} Nc4+ {[%emt 0:01:31]} 19. Kc1 {[%emt 0:02:28]} e5 {[%emt 0:00:31]} 20. fxe5 {[%emt 0:00:40]} dxe5 {[%emt 0:00:08]} 21. Rd3 {[%emt 0:00:39]} Nb6 {[%emt 0:02:39]} 22. Rhd1 {[%emt 0:01:53]} Be6 {[%emt 0:04:16]} 23. b3 {[%emt 0:00:31]} Nd7 {[%emt 0:05:55]} 24. Kb2 {[%emt 0:00:49]} Nc5 {[%emt 0:03:21]} 25. R3d2 {[%emt 0:00:30]} O-O {[%emt 0:03:24]} 26. b4 {[%emt 0:01:42]} Nd7 {[%emt 0:00:13]} 27. Rxd7 {[%emt 0:00:15]} Bxd7 {[%emt 0:00:03]} 28. Rxd7 {[%emt 0:00:05]} Rc4 {[%emt 0:02:13]} 29. Kb3 {[%emt 0:04:03]} Rfc8 {[%emt 0:00:45]} 30. Nd5 {[%emt 0:00:38]} Kf8 {[%emt 0:00:08]} 31. c3 {[%emt 0:01:04]} b5 {[%emt 0:01:02]} 32. axb5 {[%emt 0:00:21]} axb5 {[%emt 0:00:05]} 33. g4 {[%emt 0:00:17]} Rb8 {[%emt 0:05:27]} 34. g5 {[%emt 0:00:36]} Rc6 {[%emt 0:00:21]} 35. Be2 {[%emt 0:00:49]} h6 {[%emt 0:01:12]} 36. gxh6 {[%emt 0:00:57]} g5 {[%emt 0:00:18]} 37. Bg4 {[%emt 0:01:05]} Rxh6 {[%emt 0:00:20]} 38. Re7 {[%emt 0:01:01]} Ra6 {[%emt 0:00:55]} 39. Rxe5 {[%emt 0:01:24]} Rba8 {[%emt 0:00:06]} 40. Nc7 {[%emt 0:00:00]} Ra3+ {[%emt 0:00:00]} 41. Kc2 {[%emt 0:01:05]} Ra2+ {[%emt 0:01:03]} 42. Kd3 {[%emt 0:01:02]} Rd8+ {[%emt 0:00:04]} 43. Rd5 {[%emt 0:00:12]} Rxd5+ {[%emt 0:00:20]} 44. Nxd5 {[%emt 0:00:09]} Ra6 {[%emt 0:00:50]} 45. Kd4 {[%emt 0:00:15]} Rc6 {[%emt 0:00:07]} 46. Bd7 {[%emt 0:00:55]} Rh6 {[%emt 0:00:49]} 47. Kc5 {[%emt 0:00:13]} Rh4 {[%emt 0:00:03]} 48. Bf5 {[%emt 0:00:06]} 1-0

[Event "EYCC Girls-U16 2019"]
[Site "Bratislava"]
[Date "2019.08.03"]
[Round "2.19"]
[White "Ciolacu, Alessia-Mihaela"]
[Black "Dejanovic, Tereza"]
[Result "1/2-1/2"]
[ECO "D35"]
[WhiteElo "2199"]
[BlackElo "1834"]
[Annotator "ChessBase"]
[PlyCount "164"]
[EventDate "2019.08.02"]
[EventType "swiss"]
[EventCountry "SVK"]
[SourceTitle "playchess.com"]
[Source "ChessBase"]
[SourceQuality "1"]
[TimeControl "40/5400+30:1800+30"]

1. d4 d5 {[%emt 0:00:00]} 2. c4 {[%emt 0:00:00]} e6 {[%emt 0:00:00]} 3. Nc3 {[%emt 0:00:00]} Nf6 {[%emt 0:00:00]} 4. cxd5 {[%emt 0:00:00]} exd5 {[%emt 0:00:00]} 5. Bg5 {[%emt 0:00:01]} Be7 {[%emt 0:00:11]} 6. e3 {[%emt 0:00:12]} h6 {[%emt 0:00:17]} 7. Bh4 {[%emt 0:01:16]} O-O {[%emt 0:00:12]} 8. Bd3 {[%emt 0:00:18]} b6 {[%emt 0:00:27]} 9. Rc1 {[%emt 0:03:12]} Bb7 {[%emt 0:00:22]} 10. Nf3 {[%emt 0:00:58]} c5 {[%emt 0:00:43]} 11. O-O {[%emt 0:01:21]} Nbd7 {[%emt 0:00:45]} 12. Qe2 {[%emt 0:05:26]} Re8 {[%emt 0:04:03]} 13. Rfd1 {[%emt 0:11:55]} a6 {[%emt 0:06:04]} 14. dxc5 {[%emt 0:01:47]} bxc5 {[%emt 0:00:16]} 15. Bf5 {[%emt 0:08:20]} g6 {[%emt 0:12:52]} 16. Bc2 {[%emt 0:07:45]} Qb6 {[%emt 0:05:03]} 17. Bb3 {[%emt 0:25:22]} c4 {[%emt 0:04:43]} 18. Ba4 {[%emt 0:00:46]} Bc6 {[%emt 0:07:20]} 19. Bxc6 {[%emt 0:04:06]} Qxc6 {[%emt 0:00:05]} 20. b3 {[%emt 0:02:15]} Ba3 {[%emt 0:07:58]} 21. Rc2 {[%emt 0:01:32]} cxb3 {[%emt 0:03:52]} 22. axb3 {[%emt 0:00:09]} Rec8 {[%emt 0:02:56]} 23. Nd4 {[%emt 0:10:00]} Qb7 {[%emt 0:03:31]} 24. Bxf6 {[%emt 0:10:45]} Nxf6 {[%emt 0:00:09]} 25. Qd3 {[%emt 0:00:56]} Ne4 {[%emt 0:12:36]} 26. Na4 {[%emt 0:02:48]} Rab8 {[%emt 0:07:05]} 27. Ra1 {[%emt 0:00:48]} Rxc2 {[%emt 0:01:47]} 28. Qxc2 {[%emt 0:00:17]} Rc8 {[%emt 0:01:24]} 29. Qd1 {[%emt 0:00:15]} Bd6 {[%emt 0:10:10]} 30. Rc1 {[%emt 0:00:38]} Be5 {[%emt 0:06:49]} 31. Ne2 {[%emt 0:01:20]} Rb8 {[%emt 0:01:16]} 32. f3 {[%emt 0:00:15]} Nf6 {[%emt 0:01:51]} 33. Rb1 {[%emt 0:00:44]} Qa7 {[%emt 0:00:44]} 34. Qd3 {[%emt 0:00:24]} Re8 {[%emt 0:00:27]} 35. Kf2 {[%emt 0:00:32]} Bd6 {[%emt 0:00:56]} 36. Nd4 {[%emt 0:00:25]} Re7 {[%emt 0:00:34]} 37. Nc6 {[%emt 0:00:15]} Qb7 {[%emt 0:00:27]} 38. Nxe7+ {[%emt 0:00:06]} Bxe7 {[%emt 0:00:06]} 39. Rc1 {[%emt 0:00:17]} Nd7 {[%emt 0:00:22]} 40. Qc3 {[%emt 0:00:00]} Nf8 {[%emt 0:00:00]} 41. Nb2 {[%emt 0:05:31]} Qb6 {[%emt 0:06:15]} 42. Nd3 {[%emt 0:01:18]} Bf6 {[%emt 0:06:58]} 43. Qb4 {[%emt 0:01:21]} Qe6 {[%emt 0:01:54]} 44. Nf4 {[%emt 0:01:13]} Qe5 {[%emt 0:01:42]} 45. Qc5 {[%emt 0:06:16]} d4 {[%emt 0:05:42]} 46. Qxe5 {[%emt 0:04:56]} Bxe5 {[%emt 0:00:08]} 47. Rc6 {[%emt 0:06:46]} dxe3+ {[%emt 0:04:52]} 48. Kxe3 {[%emt 0:00:06]} a5 {[%emt 0:00:06]} 49. Ke4 {[%emt 0:02:03]} Nd7 {[%emt 0:03:16]} 50. Rc8+ {[%emt 0:01:29]} Kg7 {[%emt 0:01:08]} 51. Rd8 {[%emt 0:00:31]} f5+ {[%emt 0:00:04]} 52. Kd5 {[%emt 0:00:09]} Bxf4 {[%emt 0:00:40]} 53. Rxd7+ {[%emt 0:00:05]} Kf6 {[%emt 0:00:13]} 54. g3 {[%emt 0:00:38]} Bd2 {[%emt 0:00:55]} 55. Kc4 {[%emt 0:01:12]} Bb4 {[%emt 0:00:31]} 56. Rb7 {[%emt 0:00:26]} Bd2 {[%emt 0:00:50]} 57. Rd7 {[%emt 0:00:54]} Bb4 {[%emt 0:00:15]} 58. Kb5 {[%emt 0:00:07]} f4 {[%emt 0:01:30]} 59. Ra7 {[%emt 0:01:23]} fxg3 {[%emt 0:00:33]} 60. hxg3 {[%emt 0:00:07]} Be1 {[%emt 0:00:09]} 61. Rxa5 Bxg3 {[%emt 0:00:11]} 62. Kc6 {[%emt 0:01:55]} h5 {[%emt 0:00:20]} 63. b4 {[%emt 0:00:35]} h4 {[%emt 0:00:16]} 64. b5 {[%emt 0:00:27]} h3 {[%emt 0:00:26]} 65. Ra7 {[%emt 0:00:59]} Kg5 {[%emt 0:01:21]} 66. b6 {[%emt 0:01:44]} h2 {[%emt 0:00:12]} 67. Ra1 {[%emt 0:00:19]} Kf4 {[%emt 0:02:25]} 68. Rf1 {[%emt 0:02:09]} Ke3 {[%emt 0:00:15]} 69. b7 {[%emt 0:00:40]} Ke2 {[%emt 0:00:15]} 70. Ra1 {[%emt 0:00:46]} Kxf3 {[%emt 0:00:37]} 71. Ra3+ {[%emt 0:00:43]} Kf2 {[%emt 0:00:03]} 72. Ra1 {[%emt 0:00:42]} Kg2 {[%emt 0:00:36]} 73. Ra2+ {[%emt 0:00:09]} Kh3 {[%emt 0:00:16]} 74. Ra1 {[%emt 0:00:10]} Kg2 {[%emt 0:00:42]} 75. Ra2+ {[%emt 0:00:03]} Kh3 {[%emt 0:00:02]} 76. Ra1 {[%emt 0:00:03]} g5 {[%emt 0:01:53]} 77. Kd7 {[%emt 0:01:41]} g4 {[%emt 0:00:08]} 78. Ra3 {[%emt 0:01:04]} h1=Q {[%emt 0:00:43]} 79. Rxg3+ {[%emt 0:00:50]} Kxg3 {[%emt 0:00:21]} 80. b8=Q+ {[%emt 0:00:01]} Kh3 {[%emt 0:00:17]} 81. Qh8+ {[%emt 0:00:07]} Kg2 {[%emt 0:00:08]} 82. Qa8+ {[%emt 0:00:17]} Kh2 {[%emt 0:00:25]} 1/2-1/2

[Event "EYCC Girls-U16 2019"]
[Site "Bratislava"]
[Date "2019.08.03"]
[Round "2.20"]
[White "Garau, Francesca"]
[Black "Lehaci, Miruna-Daria"]
[Result "0-1"]
[ECO "C07"]
[WhiteElo "1835"]
[BlackElo "2201"]
[Annotator "NA"]
[PlyCount "70"]
[EventDate "2019.08.02"]
[EventType "swiss"]
[EventCountry "SVK"]
[SourceTitle "playchess.com"]
[Source "ChessBase"]
[SourceQuality "1"]
[TimeControl "40/5400+30:1800+30"]

1. e4 {[%emt 0:00:00]} e6 {[%emt 0:00:00]} 2. d4 {[%emt 0:00:00]} d5 {[%emt 0:00:00]} 3. Nd2 {[%emt 0:00:16]} c5 {[%emt 0:00:00]} 4. c3 {[%emt 0:00:22]} Nc6 {[%emt 0:00:13]} 5. Ngf3 {[%emt 0:00:38]} Bd6 {[%emt 0:08:23]} 6. Bd3 {[%emt 0:02:48]} Nge7 {[%emt 0:01:45]} 7. O-O {[%emt 0:04:15]} cxd4 {[%emt 0:10:35]} 8. cxd4 {[%emt 0:06:32]} Bc7 {[%emt 0:04:09]} 9. e5 {[%emt 0:04:52]} Ng6 {[%emt 0:03:14]} 10. Nb3 {[%emt 0:05:25]} O-O {[%emt 0:06:33]} 11. Ng5 {[%emt 0:25:41]} h6 {[%emt 0:09:58]} 12. Nf3 {[%emt 0:06:03]} Qe8 {[%emt 0:08:50]} 13. g4 {[%emt 0:06:41]} f6 {[%emt 0:07:20]} 14. Qc2 {[%emt 0:11:03]} Nb4 {[%emt 0:02:57]} 15. Qxc7 {[%emt 0:01:56]} Nxd3 {[%emt 0:00:05]} 16. Qc3 {[%emt 0:01:39]} fxe5 {[%emt 0:03:46]} 17. Nxe5 {[%emt 0:02:08]} Ngxe5 {[%emt 0:02:22]} 18. dxe5 {[%emt 0:00:38]} Qg6 {[%emt 0:00:09]} 19. f3 {[%emt 0:04:49]} Rxf3 {[%emt 0:10:54]} 20. Rxf3 {[%emt 0:01:05]} Qxg4+ {[%emt 0:00:05]} 21. Rg3 {[%emt 0:00:28]} Qd1+ {[%emt 0:00:05]} 22. Kg2 {[%emt 0:01:02]} Qe2+ {[%emt 0:00:05]} 23. Kh3 {[%emt 0:00:43]} Nf2+ {[%emt 0:01:56]} 24. Kh4 {[%emt 0:01:34]} Qe4+ {[%emt 0:00:12]} 25. Kh5 {[%emt 0:00:48]} Bd7 {[%emt 0:00:27]} 26. Rxg7+ {[%emt 0:06:55]} Kxg7 {[%emt 0:00:11]} 27. Qg3+ {[%emt 0:02:47]} Kh7 {[%emt 0:00:03]} 28. Qf4 {[%emt 0:01:37]} Qg6+ {[%emt 0:01:30]} 29. Kh4 {[%emt 0:00:17]} Rg8 {[%emt 0:00:19]} 30. h3 {[%emt 0:01:25]} Nd3 {[%emt 0:03:26]} 31. Qe3 {[%emt 0:00:21]} Be8 {[%emt 0:00:38]} 32. Qxh6+ {[%emt 0:00:30]} Qxh6+ {[%emt 0:00:07]} 33. Bxh6 {[%emt 0:00:06]} Kxh6 {[%emt 0:00:06]} 34. Nd4 {[%emt 0:00:28]} Nf4 {[%emt 0:00:14]} 35. Rf1 {[%emt 0:00:44]} Ng2# {[%emt 0:00:05]} 0-1

[Event "EYCC Girls-U16 2019"]
[Site "Bratislava"]
[Date "2019.08.04"]
[Round "3.1"]
[White "Dylag, Emilia"]
[Black "Getman, Tatyana"]
[Result "1/2-1/2"]
[ECO "B20"]
[WhiteElo "2099"]
[BlackElo "2143"]
[Annotator "NA"]
[PlyCount "81"]
[EventDate "2019.08.02"]
[EventType "swiss"]
[EventCountry "SVK"]
[SourceTitle "playchess.com"]
[Source "ChessBase"]
[SourceQuality "1"]
[TimeControl "40/5400+30:1800+30"]

1. e4 {[%emt 0:00:00]} c5 {[%emt 0:00:00]} 2. Ne2 {[%emt 0:00:00]} Nf6 {[%emt 0:00:09]} 3. Nbc3 {[%emt 0:00:22]} d6 {[%emt 0:00:23]} 4. g3 {[%emt 0:00:40]} Nc6 {[%emt 0:04:28]} 5. Bg2 {[%emt 0:01:07]} g6 {[%emt 0:01:16]} 6. O-O {[%emt 0:01:13]} Bg7 {[%emt 0:00:56]} 7. d3 {[%emt 0:01:43]} O-O {[%emt 0:00:44]} 8. h3 {[%emt 0:00:38]} Bd7 {[%emt 0:03:06]} 9. f4 {[%emt 0:01:48]} Rb8 {[%emt 0:05:06]} 10. g4 {[%emt 0:04:13]} b5 {[%emt 0:08:08]} 11. Ng3 {[%emt 0:02:09]} b4 {[%emt 0:05:53]} 12. Nce2 {[%emt 0:01:17]} a5 {[%emt 0:04:23]} 13. a4 {[%emt 0:06:33]} Ne8 {[%emt 0:03:28]} 14. f5 {[%emt 0:12:12]} Nc7 {[%emt 0:01:16]} 15. g5 {[%emt 0:10:35]} Nd4 {[%emt 0:01:36]} 16. Nxd4 {[%emt 0:11:25]} Bxd4+ {[%emt 0:00:11]} 17. Kh1 {[%emt 0:00:18]} Bc6 {[%emt 0:06:15]} 18. Qg4 {[%emt 0:06:47]} Qd7 {[%emt 0:07:45]} 19. Qh4 {[%emt 0:04:57]} Be5 {[%emt 0:03:06]} 20. f6 {[%emt 0:19:39]} Ne8 {[%emt 0:01:54]} 21. Ne2 {[%emt 0:02:09]} Qd8 {[%emt 0:01:28]} 22. fxe7 {[%emt 0:07:11]} Qxe7 {[%emt 0:00:05]} 23. Nf4 {[%emt 0:01:02]} Nc7 {[%emt 0:01:16]} 24. Nd5 {[%emt 0:00:54]} Nxd5 {[%emt 0:01:03]} 25. exd5 {[%emt 0:00:06]} Bd7 {[%emt 0:00:07]} 26. Bf4 {[%emt 0:01:17]} Bxb2 {[%emt 0:08:03]} 27. Rae1 {[%emt 0:00:06]} Be5 {[%emt 0:00:04]} 28. Bxe5 {[%emt 0:00:31]} dxe5 {[%emt 0:00:02]} 29. Rf6 {[%emt 0:00:35]} Rfd8 {[%emt 0:00:45]} 30. d6 {[%emt 0:00:36]} Qf8 {[%emt 0:02:09]} 31. Rxe5 {[%emt 0:00:48]} Be8 {[%emt 0:04:02]} 32. Bd5 {[%emt 0:01:13]} Rxd6 {[%emt 0:06:04]} 33. Rxe8 {[%emt 0:01:28]} Rxe8 {[%emt 0:00:05]} 34. Rxf7 {[%emt 0:00:28]} Qxf7 {[%emt 0:00:17]} 35. Bxf7+ {[%emt 0:00:04]} Kxf7 {[%emt 0:00:03]} 36. Qf2+ {[%emt 0:00:51]} Kg8 {[%emt 0:01:30]} 37. Qxc5 {[%emt 0:00:14]} Rde6 {[%emt 0:00:58]} 38. Qd5 {[%emt 0:00:47]} Kh8 {[%emt 0:01:38]} 39. Qd4+ {[%emt 0:00:35]} Re5 {[%emt 0:00:45]} 40. h4 {[%emt 0:00:00]} Kg8 {[%emt 0:00:00]} 41. Qc4+ {[%emt 0:14:07]} 1/2-1/2

[Event "EYCC Girls-U16 2019"]
[Site "Bratislava"]
[Date "2019.08.04"]
[Round "3.2"]
[White "Waszczuk, Patrycja"]
[Black "Jarocka, Liwia"]
[Result "1-0"]
[ECO "A00"]
[WhiteElo "2119"]
[BlackElo "2102"]
[Annotator "NA"]
[PlyCount "119"]
[EventDate "2019.08.02"]
[EventType "swiss"]
[EventCountry "SVK"]
[SourceTitle "playchess.com"]
[Source "ChessBase"]
[SourceQuality "1"]
[TimeControl "40/5400+30:1800+30"]

1. e3 {[%emt 0:00:00]} d5 {[%emt 0:00:01]} 2. b3 {[%emt 0:00:03]} Nf6 {[%emt 0:00:48]} 3. Bb2 {[%emt 0:00:18]} Nbd7 {[%emt 0:00:58]} 4. f4 {[%emt 0:01:00]} c6 {[%emt 0:02:00]} 5. Nf3 {[%emt 0:00:37]} Nc5 {[%emt 0:07:57]} 6. Be2 {[%emt 0:03:07]} g6 {[%emt 0:01:55]} 7. O-O {[%emt 0:05:06]} Bg7 {[%emt 0:00:11]} 8. c4 {[%emt 0:00:13]} O-O {[%emt 0:02:49]} 9. Ne5 {[%emt 0:01:26]} Nfd7 {[%emt 0:05:16]} 10. d4 {[%emt 0:01:23]} Ne4 {[%emt 0:03:20]} 11. Nc3 {[%emt 0:00:13]} Nxc3 {[%emt 0:03:02]} 12. Bxc3 {[%emt 0:00:03]} Nf6 {[%emt 0:02:36]} 13. Bf3 {[%emt 0:05:47]} Bf5 {[%emt 0:02:06]} 14. g4 {[%emt 0:07:53]} Be4 {[%emt 0:00:31]} 15. Be2 {[%emt 0:01:47]} Nd7 {[%emt 0:01:41]} 16. Nf3 {[%emt 0:03:27]} c5 {[%emt 0:28:31]} 17. Rc1 {[%emt 0:04:15]} dxc4 {[%emt 0:01:48]} 18. dxc5 {[%emt 0:02:56]} Bxc3 {[%emt 0:04:04]} 19. Rxc3 {[%emt 0:01:22]} cxb3 {[%emt 0:02:15]} 20. axb3 {[%emt 0:03:07]} Nf6 {[%emt 0:01:55]} 21. Ne5 {[%emt 0:01:52]} Qa5 {[%emt 0:01:59]} 22. Qa1 {[%emt 0:01:14]} Qc7 {[%emt 0:06:25]} 23. g5 {[%emt 0:02:25]} Nd7 {[%emt 0:01:16]} 24. Ng4 {[%emt 0:06:59]} f6 {[%emt 0:00:06]} 25. Qa4 {[%emt 0:10:30]} Bd5 {[%emt 0:05:14]} 26. e4 {[%emt 0:01:11]} Bf7 {[%emt 0:01:32]} 27. gxf6 {[%emt 0:00:33]} Nxf6 {[%emt 0:02:13]} 28. Ne5 {[%emt 0:08:20]} Kg7 {[%emt 0:00:27]} 29. Nxf7 {[%emt 0:03:17]} Rxf7 {[%emt 0:00:04]} 30. Qc4 {[%emt 0:00:20]} e5 {[%emt 0:00:49]} 31. f5 {[%emt 0:00:05]} Rd8 {[%emt 0:00:46]} 32. Rd3 {[%emt 0:05:56]} Rxd3 {[%emt 0:00:29]} 33. Bxd3 {[%emt 0:00:05]} Qe7 {[%emt 0:01:07]} 34. Be2 {[%emt 0:02:06]} Nd7 {[%emt 0:01:24]} 35. b4 {[%emt 0:00:35]} a5 {[%emt 0:01:34]} 36. c6 {[%emt 0:07:24]} bxc6 {[%emt 0:04:12]} 37. bxa5 Qa3 {[%emt 0:01:14]} 38. fxg6 {[%emt 0:04:12]} Rxf1+ {[%emt 0:00:05]} 39. Kxf1 {[%emt 0:00:19]} hxg6 {[%emt 0:00:26]} 40. Qxc6 {[%emt 0:00:00]} Nc5 {[%emt 0:00:00]} 41. Qc7+ {[%emt 0:06:04]} Kh6 {[%emt 0:02:10]} 42. Qxe5 {[%emt 0:00:16]} Qxa5 {[%emt 0:16:56]} 43. Qh8+ {[%emt 0:09:28]} Kg5 {[%emt 0:00:06]} 44. Qe5+ {[%emt 0:03:29]} Kh6 {[%emt 0:00:12]} 45. h4 {[%emt 0:00:43]} Kh7 {[%emt 0:01:24]} 46. Bc4 {[%emt 0:00:23]} Qa7 {[%emt 0:02:01]} 47. Qd5 {[%emt 0:01:00]} Qa1+ {[%emt 0:01:24]} 48. Kg2 {[%emt 0:00:48]} Na4 {[%emt 0:03:11]} 49. e5 {[%emt 0:06:23]} Qb2+ {[%emt 0:00:12]} 50. Kg3 {[%emt 0:00:22]} Qc3+ {[%emt 0:02:46]} 51. Kg4 {[%emt 0:01:22]} Kh6 {[%emt 0:00:44]} 52. e6 {[%emt 0:00:21]} Nb6 {[%emt 0:00:53]} 53. Qg5+ {[%emt 0:00:21]} Kg7 {[%emt 0:00:25]} 54. Qe7+ {[%emt 0:00:39]} Kh6 {[%emt 0:00:17]} 55. Qf8+ {[%emt 0:00:28]} Kh7 {[%emt 0:00:03]} 56. Qf7+ {[%emt 0:01:53]} Kh6 {[%emt 0:00:12]} 57. Qf4+ {[%emt 0:00:53]} Kh7 {[%emt 0:00:23]} 58. e7 {[%emt 0:00:40]} Qe1 {[%emt 0:01:02]} 59. Qf7+ {[%emt 0:00:05]} Kh6 {[%emt 0:00:06]} 60. Qf8+ {[%emt 0:00:06]} 1-0

[Event "EYCC Girls-U16 2019"]
[Site "Bratislava"]
[Date "2019.08.04"]
[Round "3.3"]
[White "Marcinczyk, Monika"]
[Black "Malicka, Maria"]
[Result "1/2-1/2"]
[ECO "C60"]
[WhiteElo "1960"]
[BlackElo "2115"]
[Annotator "NA"]
[PlyCount "99"]
[EventDate "2019.08.02"]
[EventType "swiss"]
[EventCountry "SVK"]
[SourceTitle "playchess.com"]
[Source "ChessBase"]
[SourceQuality "1"]
[TimeControl "40/5400+30:1800+30"]

1. e4 {[%emt 0:00:00]} e5 {[%emt 0:00:00]} 2. Nf3 {[%emt 0:00:00]} Nc6 {[%emt 0:00:00]} 3. Bb5 {[%emt 0:00:06]} Nge7 {[%emt 0:00:00]} 4. O-O {[%emt 0:01:06]} g6 {[%emt 0:00:00]} 5. c3 {[%emt 0:00:20]} a6 {[%emt 0:00:19]} 6. Ba4 {[%emt 0:00:56]} Bg7 {[%emt 0:00:14]} 7. d4 {[%emt 0:00:55]} exd4 {[%emt 0:00:07]} 8. cxd4 {[%emt 0:00:13]} b5 {[%emt 0:00:05]} 9. Bb3 {[%emt 0:02:03]} O-O {[%emt 0:00:22]} 10. Bg5 {[%emt 0:01:20]} h6 {[%emt 0:06:36]} 11. Be3 {[%emt 0:08:40]} Na5 {[%emt 0:06:20]} 12. a4 {[%emt 0:06:20]} Bb7 {[%emt 0:06:57]} 13. Nbd2 {[%emt 0:04:13]} d5 {[%emt 0:08:34]} 14. e5 {[%emt 0:11:20]} Nc4 {[%emt 0:01:30]} 15. Qc2 {[%emt 0:08:04]} Nf5 {[%emt 0:06:57]} 16. Bxc4 {[%emt 0:05:17]} dxc4 {[%emt 0:04:03]} 17. Ne4 {[%emt 0:04:49]} Bd5 {[%emt 0:10:18]} 18. Nfd2 {[%emt 0:02:18]} f6 {[%emt 0:07:06]} 19. exf6 {[%emt 0:04:43]} Bxf6 {[%emt 0:00:06]} 20. Ng3 {[%emt 0:06:02]} Bg7 {[%emt 0:04:14]} 21. Nxf5 {[%emt 0:02:25]} gxf5 {[%emt 0:08:26]} 22. Bf4 {[%emt 0:03:14]} Qh4 {[%emt 0:01:20]} 23. Be5 {[%emt 0:01:28]} Qg5 {[%emt 0:02:32]} 24. f3 {[%emt 0:00:53]} Bxe5 {[%emt 0:01:30]} 25. dxe5 {[%emt 0:00:17]} Qe3+ {[%emt 0:00:11]} 26. Kh1 {[%emt 0:00:34]} Qxe5 {[%emt 0:00:13]} 27. Rfe1 {[%emt 0:01:16]} Qf6 {[%emt 0:02:19]} 28. Nf1 {[%emt 0:03:29]} Rae8 {[%emt 0:02:11]} 29. Ne3 {[%emt 0:01:52]} c6 {[%emt 0:03:18]} 30. axb5 {[%emt 0:01:03]} axb5 {[%emt 0:00:06]} 31. Qd2 {[%emt 0:02:21]} Rd8 {[%emt 0:05:47]} 32. Qb4 {[%emt 0:01:53]} Rfe8 {[%emt 0:04:03]} 33. Re2 {[%emt 0:06:06]} Qd6 {[%emt 0:05:13]} 34. Qc3 {[%emt 0:06:24]} Qe5 {[%emt 0:01:46]} 35. Nxd5 {[%emt 0:01:15]} Qxd5 {[%emt 0:00:50]} 36. Rae1 {[%emt 0:01:21]} Rxe2 {[%emt 0:01:40]} 37. Rxe2 {[%emt 0:00:02]} Qd4 {[%emt 0:00:43]} 38. Qe1 {[%emt 0:01:55]} Qd1 {[%emt 0:01:26]} 39. Re8+ {[%emt 0:00:08]} Kg7 {[%emt 0:00:26]} 40. Re7+ {[%emt 0:00:00]} Kg6 {[%emt 0:00:00]} 41. Re6+ {[%emt 0:00:18]} Kg5 {[%emt 0:11:37]} 42. h4+ {[%emt 0:06:09]} Kf4 {[%emt 0:00:56]} 43. Qxd1 {[%emt 0:01:21]} Rxd1+ {[%emt 0:00:01]} 44. Kh2 {[%emt 0:00:08]} Rd2 {[%emt 0:00:25]} 45. Rxh6 {[%emt 0:00:39]} c5 {[%emt 0:09:11]} 46. Rc6 {[%emt 0:00:48]} Rxb2 {[%emt 0:00:12]} 47. h5 {[%emt 0:02:51]} Kg5 {[%emt 0:03:08]} 48. h6 {[%emt 0:04:56]} Rd2 {[%emt 0:00:51]} 49. Rxc5 {[%emt 0:04:57]} Kxh6 {[%emt 0:02:18]} 50. Rxb5 {[%emt 0:00:41]} 1/2-1/2